bitfinex/quotes_SOLUSD_20240930
["timestamp","ask_amount","ask_price","bid_price","bid_amount"]
[1727732312142,1.5974919,156.52,156.47,17.34018046]
[1727732314635,1.5974919,156.52,156.47,6.0605]
[1727732314954,1.5974919,156.52,156.48,11.27968046]
[1727732318445,1.5974919,156.52,156.47,6.0605]
[1727732318756,1.5974919,156.52,156.47,17.34018046]
[1727732319360,1.5974919,156.52,156.47,6.0605]
[1727732319555,1.5974919,156.52,156.47,17.34018046]
[1727732322337,1.5974919,156.52,156.46,11.27968046]
[1727732322541,6.3887,156.53,156.46,11.27968046]
[1727732328138,5.8887,156.53,156.46,11.27968046]
[1727732331966,45.4247037,156.59,156.48,11.27968046]
[1727732332158,38.7704,156.59,156.5,11.27968046]
[1727732333168,6.3873,156.56,156.5,11.27968046]
[1727732336775,6.387,156.57,156.5,11.27968046]
[1727732345076,6.387,156.57,156.52,11.27968046]
[1727732350888,6.3865,156.58,156.52,11.27968046]
[1727732355782,6.3862,156.59,156.54,11.27968046]
[1727732358362,23.776884,156.61,156.54,11.27968046]
[1727732358569,6.3857,156.6,156.54,11.27968046]
[1727732358776,6.3857,156.6,156.51,43.776884]
[1727732358981,23.776884,156.62,156.53,11.27968046]
[1727732358982,1.59677047,156.59,156.53,11.27968046]
[1727732359286,23.776884,156.62,156.53,11.27968046]
[1727732359865,6.3859,156.6,156.53,11.27968046]
[1727732366365,1.59675401,156.59,156.51,20.0]
[1727732366575,1.59675401,156.59,156.5,15.1946]
[1727732366789,6.387,156.57,156.5,15.1946]
[1727732366976,1.59700799,156.56,156.51,11.27968046]
[1727732368297,1.59700799,156.56,156.5,15.1946]
[1727732368480,23.776884,156.59,156.5,15.1946]
[1727732368799,1.59720942,156.58,156.5,15.1946]
[1727732369097,23.776884,156.57,156.5,15.1946]
[1727732369396,6.3873,156.56,156.5,15.1946]
[1727732372481,1.59720724,156.55,156.5,15.1946]
[1727732372708,6.3873,156.56,156.5,15.1946]
[1727732372911,1.59720699,156.55,156.5,15.1946]
[1727732373082,6.3873,156.56,156.5,15.1946]
[1727732373604,6.3873,156.56,156.44,9.57171667]
[1727732373605,6.3885,156.53,156.47,11.27968046]
[1727732373777,1.5974992,156.52,156.47,11.27968046]
[1727732373976,6.3885,156.53,156.47,11.27968046]
[1727732374183,1.59746633,156.52,156.47,11.27968046]
[1727732374511,1.59746633,156.52,156.46,15.6363]
[1727732374686,1.59746633,156.52,156.47,11.27968046]
[1727732375298,6.3885,156.53,156.47,11.27968046]
[1727732377905,23.776884,156.55,156.46,15.6363]
[1727732378104,6.389,156.52,156.46,15.6363]
[1727732378305,6.389,156.52,156.46,26.91598046]
[1727732378509,6.389,156.52,156.46,15.6363]
[1727732378687,6.389,156.52,156.46,26.91598046]
[1727732382209,1.59746193,156.56,156.45,6.0811]
[1727732382210,6.3899,156.5,156.45,6.0811]
[1727732382508,6.3899,156.5,156.44,12.12848786]
[1727732382714,7.98696358,156.51,156.44,12.12848786]
[1727732383404,1.5976482,156.5,156.44,12.12848786]
[1727732386895,6.3904,156.49,156.44,0.8488074]
[1727732387203,1.59785577,156.48,156.44,0.8488074]
[1727732389009,24.62445577,156.48,156.44,0.8488074]
[1727732389186,23.0266,156.48,156.44,0.8488074]
[1727732390411,6.3915,156.46,156.44,0.8488074]
[1727732390583,7.9899768,156.45,156.44,0.8488074]
[1727732391506,6.3918,156.45,156.44,0.8488074]
[1727732392804,7.98998855,156.45,156.44,0.8488074]
[1727732393820,6.3918,156.45,156.44,0.8488074]
[1727732395494,30.168684,156.45,156.44,0.8488074]
[1727732400195,6.3911,156.47,156.44,0.8488074]
[1727732400504,6.3902,156.49,156.44,12.12848786]
[1727732400702,1.59786119,156.48,156.44,0.8488074]
[1727732400905,6.3913,156.47,156.44,0.8488074]
[1727732401519,6.3908,156.48,156.44,0.8488074]
[1727732403302,6.391,156.47,156.44,0.8488074]
[1727732425716,23.776884,156.5,156.44,0.8488074]
[1727732425929,6.3906,156.48,156.44,12.12848786]
[1727732426733,6.3905,156.49,156.44,12.12848786]
[1727732427035,1.59785392,156.48,156.44,0.8488074]
[1727732428016,6.3908,156.48,156.44,0.8488074]
[1727732439045,6.3918,156.45,156.44,0.8488074]
[1727732439347,7.99017892,156.45,156.44,0.8488074]
[1727732440132,6.3918,156.45,156.44,0.8488074]
[1727732440336,7.99018646,156.45,156.44,0.8488074]
[1727732441240,6.3918,156.45,156.44,0.8488074]
[1727732441543,7.9901858,156.45,156.44,0.8488074]
[1727732442446,6.3918,156.45,156.44,0.8488074]
[1727732442631,7.99018575,156.45,156.44,0.8488074]
[1727732443550,6.3918,156.45,156.44,0.8488074]
[1727732443857,7.99018525,156.45,156.44,0.8488074]
[1727732444744,6.3918,156.45,156.44,0.8488074]
[1727732444941,7.9901848,156.45,156.44,0.8488074]
[1727732445346,6.3918,156.45,156.44,0.8488074]
[1727732516712,30.168684,156.45,156.44,0.8488074]
[1727732517011,50.168684,156.45,156.44,0.8488074]
[1727732518309,50.168684,156.45,156.4,0.1932332]
[1727732518310,6.3934,156.41,156.4,0.1932332]
[1727732518898,30.170284,156.41,156.4,0.1932332]
[1727732519394,31.76925024,156.41,156.4,0.1932332]
[1727732525406,6.3952,156.37,156.29,23.776884]
[1727732525607,1.59898813,156.36,156.29,23.776884]
[1727732525813,1.59898813,156.36,156.3,11.27968046]
[1727732527414,6.3959,156.35,156.28,18.78229266]
[1727732527620,7.9956293,156.34,156.28,18.78229266]
[1727732527792,6.3963,156.34,156.28,18.78229266]
[1727732527998,6.396,156.35,156.28,18.78229266]
[1727732528308,1.59932705,156.34,156.28,18.78229266]
[1727732528903,7.99562705,156.34,156.28,18.78229266]
[1727732529102,1.59935907,156.33,156.28,18.78229266]
[1727732530717,1.59935907,156.33,156.28,7.5026122]
[1727732530923,1.59935907,156.33,156.28,18.78229266]
[1727732532511,1.59935907,156.33,156.28,1.1113122]
[1727732532717,6.3967,156.33,156.28,1.1113122]
[1727732532929,6.3964,156.34,156.28,1.1113122]
[1727732533099,1.5993424,156.33,156.28,1.1113122]
[1727732533619,7.9962424,156.33,156.28,1.1113122]
[1727732534009,1.59950735,156.32,156.28,1.1113122]
[1727732537019,1.59950735,156.32,156.28,12.39099266]
[1727732537331,1.59950471,156.33,156.28,12.39099266]
[1727732541004,1.59950471,156.33,156.28,1.1113122]
[1727732544506,1.59950471,156.33,156.28,12.39099266]
[1727732545524,30.172884,156.35,156.29,11.27968046]
[1727732545915,6.3971,156.32,156.28,1.1113122]
[1727732546123,6.3964,156.34,156.28,12.39099266]
[1727732546323,1.5995018,156.33,156.28,1.1113122]
[1727732546629,1.59950416,156.32,156.28,1.1113122]
[1727732546819,7.99690416,156.32,156.28,1.1113122]
[1727732547127,23.776884,156.3,156.28,1.1113122]
[1727732547433,16.1143,156.31,156.28,1.1113122]
[1727732547434,31.77526099,156.29,156.28,1.1113122]
[1727732548229,50.99526099,156.29,156.28,1.1113122]
[1727732548536,70.99526099,156.29,156.28,1.1113122]
[1727732549012,69.395184,156.29,156.28,1.1113122]
[1727732549711,50.175184,156.29,156.28,1.1113122]
[1727732550335,30.175184,156.29,156.28,1.1113122]
[1727732553918,23.776884,156.29,156.28,1.1113122]
[1727732555822,6.3982,156.3,156.28,1.1113122]
[1727732560129,6.3983,156.29,156.28,1.1113122]
[1727732563447,7.9982896,156.29,156.28,1.1113122]
[1727732566238,23.776884,156.3,156.28,1.1113122]
[1727732566443,16.1143,156.31,156.28,1.1113122]
[1727732566625,6.3974,156.32,156.28,1.1113122]
[1727732568446,6.3963,156.34,156.28,16.2938122]
[1727732578639,1.59952201,156.33,156.28,16.2938122]
[1727732579263,6.3963,156.34,156.28,16.2938122]
[1727732580437,7.99622345,156.33,156.28,16.2938122]
[1727732580639,1.59952345,156.32,156.28,16.2938122]
[1727732581346,39.764884,156.37,156.28,16.2938122]
[1727732581347,6.3964,156.34,156.28,16.2938122]
[1727732583658,6.3967,156.33,156.28,16.2938122]
[1727732592096,1.59952266,156.32,156.28,16.2938122]
[1727732595587,6.3957,156.36,156.28,16.2938122]
[1727732595890,6.3959,156.35,156.28,16.2938122]
[1727732597499,21.599411,156.38,156.28,16.2938122]
[1727732597791,6.3964,156.34,156.28,16.2938122]
[1727732598796,7.99611401,156.33,156.28,1.1113122]
[1727732598993,6.3967,156.33,156.28,1.1113122]
[1727732601478,1.59941507,156.32,156.28,1.1113122]
[1727732602775,23.776884,156.34,156.28,1.1113122]
[1727732603093,30.175184,156.29,156.28,1.1113122]
[1727732603672,50.175184,156.29,156.28,1.1113122]
[1727732604210,20.0,156.28,156.15,22.9395]
[1727732604494,20.0,156.28,156.15,34.21918046]
[1727732604495,6.402,156.21,156.15,34.21918046]
[1727732604708,1.60073925,156.2,156.15,22.9395]
[1727732604877,6.4024,156.2,156.15,22.9395]
[1727732605273,1.60073913,156.19,156.15,22.9395]
[1727732605493,1.60073913,156.19,156.15,21.9395]
[1727732607390,6.4031,156.18,156.15,6.3468]
[1727732607593,1.60104045,156.17,156.15,6.3468]
[1727732607905,1.60104045,156.17,156.12,0.8488074]
[1727732608089,6.4024,156.19,156.12,0.8488074]
[1727732608289,8.00394647,156.18,156.12,0.8488074]
[1727732608601,1.60115694,156.17,156.12,12.12848786]
[1727732609202,8.00465694,156.17,156.12,0.8488074]
[1727732609502,1.60115933,156.16,156.12,0.8488074]
[1727732610196,20.0,156.2,156.12,0.8488074]
[1727732610427,6.4034,156.17,156.12,0.8488074]
[1727732611585,6.4037,156.16,156.12,0.8488074]
[1727732612599,1.60139773,156.15,156.12,0.8488074]
[1727732615400,6.4037,156.16,156.12,0.8488074]
[1727732617401,23.776884,156.2,156.12,0.8488074]
[1727732617703,23.776884,156.2,156.12,7.1941074]
[1727732617704,6.4031,156.18,156.12,7.1941074]
[1727732629601,23.776884,156.2,156.12,7.1941074]
[1727732629802,6.4033,156.17,156.12,7.1941074]
[1727732630205,1.60115076,156.16,156.12,7.1941074]
[1727732635605,6.4033,156.17,156.12,7.1941074]
[1727732636728,8.00445131,156.17,156.12,7.1941074]
[1727732637217,6.4033,156.17,156.12,7.1941074]
[1727732639197,6.4025,156.19,156.12,7.1941074]
[1727732640207,1.60094788,156.18,156.12,7.1941074]
[1727732640431,6.4025,156.19,156.12,7.1941074]
[1727732640619,6.4029,156.18,156.12,7.1941074]
[1727732646008,6.4029,156.18,156.12,18.47378786]
[1727732647013,6.4029,156.18,156.12,7.1941074]
[1727732647213,6.4049,156.13,156.12,0.8488074]
[1727732648104,1.60139344,156.16,156.12,0.8488074]
[1727732648307,6.4046,156.14,156.12,0.8488074]
[1727732648522,1.60140412,156.13,156.12,0.8488074]
[1727732648723,1.60140412,156.13,156.09,0.3840812]
[1727732648724,29.857484,156.13,156.09,0.3840812]
[1727732649025,6.4061,156.1,156.09,0.3840812]
[1727732650212,8.00792641,156.1,156.09,0.3840812]
[1727732651225,6.4061,156.1,156.09,0.3840812]
[1727732651520,8.00804837,156.1,156.09,0.3840812]
[1727732652020,31.78493237,156.1,156.09,0.3840812]
[1727732655920,8.00804837,156.1,156.09,0.3840812]
[1727732656114,6.4061,156.1,156.09,0.3840812]
[1727732656313,8.00813072,156.1,156.09,0.3840812]
[1727732657229,30.182984,156.1,156.09,0.3840812]
[1727732659416,31.78508653,156.1,156.09,0.3840812]
[1727732659727,30.182984,156.1,156.09,0.3840812]
[1727732665719,65.303684,156.1,156.09,0.3840812]
[1727732666029,46.063684,156.1,156.09,0.3840812]
[1727732667313,65.303684,156.1,156.09,0.3840812]
[1727732668125,46.063684,156.1,156.09,0.3840812]
[1727732669640,47.66609271,156.1,156.09,0.3840812]
[1727732670316,66.90609271,156.1,156.09,0.3840812]
[1727732671040,65.303684,156.1,156.09,0.3840812]
[1727732673521,30.182984,156.1,156.09,0.3840812]
[1727732675719,31.78521845,156.1,156.09,0.3840812]
[1727732678439,30.182984,156.1,156.09,0.3840812]
[1727732692450,6.4061,156.1,156.09,0.3840812]
[1727732711440,6.4058,156.11,156.09,0.3840812]
[1727732717267,6.4053,156.12,156.09,0.3840812]
[1727732719665,6.405,156.13,156.09,0.3840812]
[1727732725768,6.4046,156.14,156.09,6.6801812]
[1727732726950,6.4049,156.13,156.09,6.6801812]
[1727732727361,6.4046,156.14,156.09,6.6801812]
[1727732731061,6.404,156.16,156.09,6.6801812]
[1727732731368,23.776884,156.18,156.09,6.6801812]
[1727732731672,6.4042,156.15,156.09,6.6801812]
[1727732734858,6.4042,156.15,156.1,11.27968046]
[1727732736655,6.4037,156.16,156.1,11.27968046]
[1727732742687,26.67258076,156.22,156.11,21.8422]
[1727732742857,6.4033,156.17,156.11,21.8422]
[1727732749087,6.4029,156.18,156.11,21.8422]
[1727732751875,6.4029,156.18,156.12,11.27968046]
[1727732755977,6.4029,156.18,156.11,33.12188046]
[1727732760890,6.4029,156.18,156.11,21.8422]
[1727732761096,6.4029,156.18,156.12,11.27968046]
[1727732765578,6.4024,156.19,156.13,23.776884]
[1727732768597,6.4024,156.19,156.14,11.27968046]
[1727732769293,6.402,156.2,156.14,11.27968046]
[1727732778505,6.402,156.2,156.15,6.4083]
[1727732780517,6.4017,156.21,156.15,6.4083]
[1727732780913,6.4017,156.21,156.16,11.27968046]
[1727732781309,6.4017,156.21,156.16,26.42188046]
[1727732789530,6.4013,156.22,156.16,26.42188046]
[1727732791112,6.401,156.23,156.18,11.27968046]
[1727732791425,29.17889938,156.28,156.18,11.27968046]
[1727732791426,6.4007,156.24,156.18,11.27968046]
[1727732791604,6.4,156.25,156.18,11.27968046]
[1727732793425,6.4,156.25,156.2,11.27968046]
[1727732795219,23.60398076,156.31,156.2,11.27968046]
[1727732795426,6.3996,156.26,156.2,11.27968046]
[1727732796536,6.3996,156.26,156.21,16.3655]
[1727732797913,39.59818076,156.31,156.22,17.51998046]
[1727732798118,6.399,156.28,156.22,17.51998046]
[1727732799131,7.43258076,156.31,156.22,17.51998046]
[1727732799321,6.398,156.3,156.23,23.776884]
[1727732799826,6.398,156.3,156.24,11.27968046]
[1727732808114,39.13668076,156.35,156.24,11.27968046]
[1727732808321,6.3975,156.31,156.24,11.27968046]
[1727732808632,6.3975,156.31,156.25,23.776884]
[1727732808831,6.3975,156.31,156.26,15.0959]
[1727732809032,39.13668076,156.35,156.26,15.0959]
[1727732809334,6.3971,156.32,156.26,26.37558046]
[1727732809835,6.3971,156.32,156.27,6.1722]
[1727732816325,6.3971,156.32,156.28,11.27968046]
[1727732827947,22.18594066,156.39,156.28,11.27968046]
[1727732828150,6.3968,156.33,156.29,11.27968046]
[1727732838864,6.3963,156.34,156.29,11.27968046]
[1727732839752,6.3963,156.34,156.27,6.1722]
[1727732839753,15.9869,156.38,156.28,23.776884]
[1727732840052,6.3967,156.33,156.28,23.776884]
[1727732842151,6.3967,156.33,156.28,35.05656446]
[1727732845838,6.3964,156.34,156.28,35.05656446]
[1727732850961,6.3964,156.34,156.29,11.27968046]
[1727732861660,6.3959,156.35,156.31,11.27968046]
[1727732861868,6.3959,156.35,156.3,11.27968046]
[1727732864058,6.3959,156.35,156.29,26.57088046]
[1727732881967,6.3956,156.36,156.29,26.57088046]
[1727732894483,6.395,156.37,156.29,26.57088046]
[1727732894686,6.395,156.37,156.31,11.27968046]
[1727732895891,6.395,156.37,156.31,17.70258046]
[1727732914609,6.395,156.37,156.31,6.4229]
[1727732914988,6.395,156.37,156.31,17.70258046]
[1727732926321,6.395,156.37,156.31,6.4229]
[1727732990266,6.3943,156.39,156.31,6.4229]
[1727732990466,6.3946,156.38,156.31,6.4229]
[1727732992762,6.3946,156.38,156.32,15.7371]
[1727733000378,6.3946,156.38,156.32,15.5373]
[1727733004882,6.3946,156.38,156.32,26.81698046]
[1727733028599,6.3939,156.4,156.32,26.81698046]
[1727733029102,22.68199771,156.46,156.33,6.2532]
[1727733029293,6.3942,156.4,156.33,6.2532]
[1727733038993,43.776884,156.45,156.33,6.2532]
[1727733039196,6.3942,156.39,156.33,6.2532]
[1727733056623,1.59881765,156.43,156.33,6.2532]
[1727733056803,6.3939,156.4,156.33,6.2532]
[1727733060120,1.5988173,156.39,156.33,6.2532]
[1727733063329,6.3955,156.36,156.32,15.5373]
[1727733064626,6.3954,156.37,156.32,15.5373]
[1727733066111,6.3955,156.36,156.3,20.0]
[1727733066325,23.776884,156.4,156.29,6.1051]
[1727733066326,6.3961,156.35,156.29,6.1051]
[1727733067034,6.3955,156.36,156.29,6.1051]
[1727733067741,43.016884,156.4,156.29,6.1051]
[1727733067916,6.3959,156.35,156.29,6.1051]
[1727733070830,6.3967,156.33,156.29,6.1051]
[1727733074621,23.776884,156.38,156.29,6.1051]
[1727733074939,6.3963,156.34,156.29,6.1051]
[1727733076342,6.3959,156.35,156.29,6.1051]
[1727733082546,1.59931648,156.34,156.29,6.1051]
[1727733083742,6.3959,156.35,156.29,6.1051]
[1727733105642,17.58532783,156.39,156.29,6.1051]
[1727733105842,6.3959,156.35,156.29,17.38478046]
[1727733106539,6.3959,156.35,156.29,6.1051]
[1727733111760,6.3966,156.34,156.29,6.1051]
[1727733112147,6.3967,156.33,156.29,6.1051]
[1727733113160,1.59944693,156.32,156.29,6.1051]
[1727733113567,6.3967,156.33,156.29,6.1051]
[1727733114448,6.3963,156.34,156.29,6.1051]
[1727733124653,1.59944027,156.33,156.29,6.1051]
[1727733125178,6.3963,156.34,156.29,6.1051]
[1727733127473,1.59944041,156.33,156.29,6.1051]
[1727733127974,6.3963,156.34,156.29,6.1051]
[1727733128471,1.59943973,156.33,156.29,6.1051]
[1727733130663,6.3963,156.34,156.29,6.1051]
[1727733132177,1.59943855,156.33,156.29,6.1051]
[1727733132773,6.3963,156.34,156.29,6.1051]
[1727733133157,6.3967,156.33,156.29,6.1051]
[1727733140181,1.59943467,156.37,156.3,6.384]
[1727733140375,6.3959,156.35,156.3,6.384]
[1727733140571,6.3964,156.34,156.3,6.384]
[1727733140766,6.3959,156.35,156.3,6.384]
[1727733148988,63.1942,156.41,156.3,6.384]
[1727733149174,6.3955,156.36,156.3,6.384]
[1727733149489,6.3946,156.38,156.3,6.384]
[1727733149689,1.59902482,156.37,156.3,6.384]
[1727733150268,6.3946,156.38,156.3,6.384]
[1727733150772,6.3955,156.36,156.3,6.384]
[1727733150973,1.59912491,156.35,156.3,6.384]
[1727733151403,6.3955,156.36,156.3,6.384]
[1727733152368,1.59912481,156.39,156.3,6.384]
[1727733152567,1.59926835,156.38,156.3,6.384]
[1727733152768,6.3968,156.33,156.3,6.384]
[1727733154702,25.37628528,156.37,156.3,6.384]
[1727733154703,6.3963,156.34,156.3,6.384]
[1727733160202,23.776884,156.37,156.3,6.384]
[1727733160505,6.3967,156.33,156.3,6.384]
[1727733160803,7.99653333,156.32,156.3,6.384]
[1727733161001,6.3971,156.32,156.3,6.384]
[1727733176392,6.3971,156.32,156.26,17.58738046]
[1727733178009,6.3979,156.3,156.26,6.3077]
[1727733178321,55.746484,156.37,156.26,6.3077]
[1727733178505,6.398,156.3,156.26,6.3077]
[1727733178705,7.95586788,156.36,156.22,6.0138]
[1727733178918,6.3984,156.29,156.22,6.0138]
[1727733179227,6.3984,156.29,156.23,11.27968046]
[1727733179704,6.398,156.3,156.23,11.27968046]
[1727733182625,6.399,156.28,156.22,6.0138]
[1727733182808,6.399,156.28,156.22,17.29348046]
[1727733184905,6.399,156.28,156.22,6.0138]
[1727733185114,6.399,156.28,156.23,11.27968046]
[1727733187014,6.399,156.28,156.22,17.29348046]
[1727733189532,15.2367,156.33,156.22,6.0138]
[1727733189732,22.1591,156.31,156.18,23.776884]
[1727733190035,6.3992,156.27,156.21,11.27968046]
[1727733191111,6.3992,156.27,156.2,35.05656446]
[1727733193633,6.3992,156.27,156.21,11.27968046]
[1727733193827,6.3992,156.27,156.2,23.776884]
[1727733194128,6.3992,156.27,156.21,11.27968046]
[1727733194317,6.3992,156.27,156.2,35.05656446]
[1727733194845,6.3992,156.27,156.2,23.776884]
[1727733195019,6.3992,156.27,156.2,35.05656446]
[1727733197618,6.3992,156.27,156.21,11.27968046]
[1727733202020,6.3996,156.26,156.21,11.27968046]
[1727733202333,6.3996,156.26,156.2,35.05656446]
[1727733202531,6.3996,156.26,156.2,23.776884]
[1727733202728,6.3996,156.26,156.2,35.05656446]
[1727733205240,6.3996,156.26,156.2,23.776884]
[1727733205615,6.3996,156.26,156.2,35.05656446]
[1727733206944,15.5973,156.29,156.14,2.0]
[1727733207241,16.5468,156.24,156.17,11.27968046]
[1727733207441,6.4008,156.23,156.17,11.27968046]
[1727733208016,6.4008,156.23,156.13,6.4059]
[1727733208247,6.4008,156.23,156.17,11.27968046]
[1727733209526,16.5468,156.24,156.14,20.0]
[1727733209738,8.00149722,156.23,156.16,11.27968046]
[1727733210041,8.00149722,156.23,156.17,23.776884]
[1727733210540,6.4012,156.22,156.16,11.27968046]
[1727733211853,6.4012,156.22,156.14,20.0]
[1727733212058,6.4012,156.22,156.15,11.27968046]
[1727733212246,16.5468,156.24,156.15,11.27968046]
[1727733212424,6.4017,156.21,156.15,11.27968046]
[1727733214623,6.4017,156.21,156.14,43.776884]
[1727733214837,6.4017,156.21,156.14,55.05656446]
[1727733219746,6.4017,156.21,156.16,11.27968046]
[1727733221057,16.5468,156.24,156.16,11.27968046]
[1727733221352,6.4017,156.21,156.16,11.27968046]
[1727733223753,6.4032,156.18,156.1,6.62561658]
[1727733224053,15.2729,156.2,156.12,20.0]
[1727733224252,6.4031,156.18,156.12,20.0]
[1727733225034,6.4031,156.18,156.1,20.0]
[1727733225256,6.4031,156.18,156.12,20.0]
[1727733225449,8.00336263,156.19,156.12,20.0]
[1727733225835,15.2729,156.2,156.12,20.0]
[1727733226158,1.60085813,156.19,156.12,20.0]
[1727733228248,21.6753,156.2,156.1,20.0]
[1727733228446,8.00326268,156.19,156.12,43.776884]
[1727733229643,6.4024,156.19,156.12,43.776884]
[1727733230353,8.00326223,156.19,156.12,43.776884]
[1727733232542,1.60086223,156.19,156.12,20.0]
[1727733232765,6.4029,156.18,156.11,23.776884]
[1727733233549,1.60092518,156.17,156.11,23.776884]
[1727733235872,24.09632544,156.16,156.09,20.3840812]
[1727733236062,1.60118243,156.15,156.09,20.3840812]
[1727733236649,1.60118245,156.15,156.09,20.3840812]
[1727733236867,22.4954,156.16,156.09,20.3840812]
[1727733246371,8.00548103,156.15,156.09,0.3840812]
[1727733247950,22.1914,156.16,156.09,24.1609652]
[1727733248146,22.1914,156.16,156.1,11.27968046]
[1727733248351,30.1964779,156.16,156.09,0.3840812]
[1727733248654,30.1963779,156.16,156.09,11.66376166]
[1727733249176,28.5953,156.16,156.09,11.66376166]
[1727733249669,22.4957,156.16,156.09,0.3840812]
[1727733249875,1.60127989,156.15,156.09,11.66376166]
[1727733250176,22.4957,156.16,156.09,11.66376166]
[1727733251262,16.0918,156.16,156.09,11.66376166]
[1727733252079,17.69292814,156.16,156.09,11.66376166]
[1727733252971,24.09652814,156.16,156.09,0.3840812]
[1727733253182,1.60122986,156.15,156.09,20.3840812]
[1727733253584,22.4954,156.16,156.09,20.3840812]
[1727733258653,16.0918,156.16,156.09,20.3840812]
[1727733262086,16.0918,156.16,156.09,24.1609652]
[1727733262789,16.0918,156.16,156.1,31.27968046]
[1727733266189,16.0918,156.16,156.1,11.27968046]
[1727733274496,17.69288943,156.16,156.1,11.27968046]
[1727733275380,16.0918,156.16,156.1,11.27968046]
[1727733275583,17.69289476,156.16,156.1,11.27968046]
[1727733278479,16.0918,156.16,156.1,11.27968046]
[1727733285302,17.69289698,156.16,156.1,11.27968046]
[1727733286289,16.0918,156.16,156.1,11.27968046]
[1727733289385,16.0918,156.16,156.1,20.0]
[1727733290205,16.0918,156.16,156.1,31.27968046]
[1727733295711,16.0918,156.16,156.11,23.776884]
[1727733308209,16.0918,156.16,156.11,35.05656446]
[1727733309419,16.0918,156.16,156.12,20.0]
[1727733314319,16.0918,156.16,156.13,23.776884]
[1727733318327,16.0918,156.16,156.09,20.3840812]
[1727733318530,16.0918,156.16,156.12,20.0]
[1727733321219,16.0918,156.16,156.11,11.27968046]
[1727733321731,16.0918,156.16,156.12,20.0]
[1727733323333,16.0918,156.16,156.13,23.776884]
[1727733324431,16.0918,156.16,156.09,20.3840812]
[1727733324633,16.0918,156.16,156.12,43.776884]
[1727733335626,6.5516,156.2,156.14,20.0]
[1727733335927,6.5516,156.2,156.15,35.05656446]
[1727733336142,15.6369,156.21,156.18,20.0]
[1727733341453,28.7006,156.25,156.18,20.0]
[1727733346134,28.7006,156.25,156.16,20.0]
[1727733346343,28.7006,156.25,156.18,43.776884]
[1727733351165,22.3006,156.25,156.19,11.27968046]
[1727733354077,22.3006,156.25,156.18,43.776884]
[1727733354254,22.3006,156.25,156.18,55.05656446]
[1727733361278,16.1575,156.25,156.18,55.05656446]
[1727733395500,16.1575,156.25,156.2,11.27968046]
[1727733399113,16.1575,156.25,156.21,23.776884]
[1727733414726,16.1348,156.29,156.22,31.27968046]
[1727733415031,16.1348,156.29,156.23,23.776884]
[1727733415208,16.1348,156.29,156.24,31.27968046]
[1727733418009,16.1348,156.29,156.25,23.776884]
[1727733443152,6.3974,156.32,156.25,23.776884]
[1727733446654,6.3974,156.32,156.27,23.776884]
[1727733449042,6.3977,156.31,156.27,23.776884]
[1727733449349,1.59940326,156.3,156.2,6.5696]
[1727733449559,15.9501,156.32,156.22,11.27968046]
[1727733449741,1.59972886,156.31,156.22,11.27968046]
[1727733450256,6.3988,156.28,156.22,11.27968046]
[1727733450663,6.3988,156.28,156.23,20.0]
[1727733457078,6.3988,156.28,156.22,11.27968046]
[1727733457079,15.9501,156.32,156.26,11.27968046]
[1727733457672,6.398,156.3,156.26,11.27968046]
[1727733469586,17.54962221,156.32,156.24,23.776884]
[1727733469894,6.3987,156.28,156.21,20.0]
[1727733470067,6.3987,156.28,156.23,20.0]
[1727733471268,21.8673,156.27,156.21,11.27968046]
[1727733471473,21.8673,156.27,156.22,20.0]
[1727733474580,15.468,156.27,156.23,35.05656446]
[1727733480894,15.468,156.27,156.23,23.776884]
[1727733481078,15.468,156.27,156.22,11.27968046]
[1727733481079,21.8674,156.27,156.22,11.27968046]
[1727733481278,21.8674,156.27,156.23,20.0]
[1727733482175,6.3997,156.26,156.16,6.1386]
[1727733482375,7.9997753,156.26,156.2,20.0]
[1727733484281,7.9997753,156.26,156.17,20.0]
[1727733484481,6.4,156.25,156.2,23.776884]
[1727733484677,6.4,156.25,156.21,20.0]
[1727733485279,6.4,156.25,156.2,43.776884]
[1727733486493,6.4,156.25,156.2,20.0]
[1727733486494,1.60008763,156.24,156.2,20.0]